Cogmind - Beta 17.1 @@@ ROGUE MODE // 2026.09.13 @ 22:23:50 Player: Boatmurdered Result: Destroyed by H-77 Assassin with High-powered Shotgun Performance ------------- Evolutions (7) 3500 Regions Visited (20) 4000 Robots Destroyed (256) 1280 Value Destroyed (13930) 13930 Prototype IDs (64) 1280 Alien Tech Used (5) 1000 Bonus (25188) 25188 TOTAL SCORE: 50178 Bonus ------- High Alert Combat Kills 2352 Follower Combat Kills 1825 Prayed to X0-1V1 5000 Major X0-1V1 Interference 15200 Entered Garrisons 200 Used RIF Installer 500 Network Hubs Disabled 200 Registered with UFD 300 Met Optimus in HQ 500 Met Optimus at Protoforge 1000 Friendly Fire -1889 Cogmind --------- Core Integrity 0/1350 Matter 1000/1000 Energy 98/100 System Corruption 47% Temperature Cool (0) Movement Core (50) Location -3/Protoforge Parts ------- > --- POWER (2) -------- (None) > --- PROPULSION (6) --- (None) > --- UTILITY (10) ----- (None) > --- WEAPON (4) ------- (None) > --- INVENTORY (5) ---- Impulse Thruster Impulse Thruster Experimental Heat Sink Centrium Light Armor Plating Centrium Light Armor Plating Peak State ------------ > --- POWER ------------ Light Antimatter Reactor Micro Antimatter Reactor > --- PROPULSION ------- Medium Armored Exoskeleton Myomer Leg Centrium Leg Experimental Biometal Leg > --- UTILITY ---------- Experimental Heat Sink Experimental Heat Sink High-capacity Storage Unit Advanced Signal Interpreter Experimental Core Analyzer Experimental Reaction Control System Centrium Light Armor Plating Phase Armor Advanced Force Field > --- WEAPON ----------- Compact HERF Cannon Compact HERF Cannon Compact HERF Cannon Tactical Quantum Warhead > --- INVENTORY -------- Improved Quantum Reactor Impulse Thruster Impulse Thruster Makeshift Coolant Network Heavy Scimitar of Distortion Plasma Lance Enhanced Force Lance Enhanced Force Lance UFD Drillbomb [Rating: 196] Favorites ----------- Power Improved Ion Engine Engine Improved Ion Engine Power Core Neutrino Core Reactor Zero-point Reactor Propulsion Light Treads Treads Light Treads Leg Medium Armored Exoskeleton Flight Unit Flightbrick Utility X0-1V1's Piety Tracker Device X0-1V1's Piety Tracker Storage High-capacity Storage Unit Processor Melee Analysis Suite Hackware Improved Hacking Suite Protection Centrium Medium Armor Plating Artifact Phase Armor Weapon Advanced KE Penetrator Energy Gun Tesla Rifle Energy Cannon Compact HERF Cannon Ballistic Gun Advanced KE Penetrator Ballistic Cannon Antimatter Cannon Launcher Tactical Quantum Warhead Special Weapon Mining Laser Impact Weapon Impact Mace Slashing Weapon Power Sword Piercing Weapon Plasma Lance Special Melee Weapon Dirty Datajack Build | -11 -10 -10 -9 -6 -6 -6 -6 -6 -5 -5 -5 -5 -4 -4 -4 -4 -3 -3 -3 -3 ------- Run | Yrd Mat Sub Scr Fac Ext Cet Arc Hub Fac Was Fac Gar Fac Upp Upp War Pro Res Qua Frg Slots Evolved 14 | . . . . 8 . . . . 2 . . . 2 . . . . 2 . . Power . | . . . . . . . . . . . . . . . . . . . . . Propulsion 4 | . . . . 4 . . . . . . . . . . . . . . . . Utility 8 | . . . . 3 . . . . 1 . . . 2 . . . . 2 . . Weapon 2 | . . . . 1 . . . . 1 . . . . . . . . . . . Parts Attached 248 | 8 22 10 4 27 7 7 2 . 16 1 13 21 22 7 1 . 8 10 17 45 Power 38 | 1 2 1 . 4 3 1 1 . 4 . 2 2 6 2 . . 1 . 2 6 Engine 7 | 1 2 1 . 2 . 1 . . . . . . . . . . . . . . Core 16 | . . . . 2 3 . 1 . 3 . 2 1 3 . . . 1 . . . Reactor 15 | . . . . . . . . . 1 . . 1 3 2 . . . . 2 6 Propulsion 44 | 2 5 3 1 3 . 3 . . 2 . . 4 6 . . . 2 2 5 6 Treads 19 | 2 5 3 1 . . . . . . . . 4 4 . . . . . . . Leg 21 | . . . . . . 2 . . 2 . . . 2 . . . 2 2 5 6 Wheel . | . . . . . . . . . . . . . . . . . . . . . Hover . | . . . . . . . . . . . . . . . . . . . . . Flight 4 | . . . . 3 . 1 . . . . . . . . . . . . . . Utility 101 | 3 6 . 1 13 3 2 1 . 4 1 9 6 8 2 1 . 3 5 9 24 Device 45 | 2 3 . . 5 1 1 . . 3 1 5 3 3 1 1 . 2 1 4 9 Storage 9 | 1 2 . 1 . . . . . . . . . 1 . . . . 1 2 1 Processor 20 | . . . . 5 . . . . 1 . 4 3 2 1 . . . 2 1 1 Hackware 4 | . . . . 2 . . . . . . . . . . . . 1 1 . . Protection 21 | . 1 . . 1 2 1 1 . . . . . 2 . . . . . . 13 Artifact 2 | . . . . . . . . . . . . . . . . . . . 2 . Weapon 65 | 2 9 6 2 7 1 1 . . 6 . 2 9 2 3 . . 2 3 1 9 Energy Gun 4 | . . . . . . . . . 2 . . . 1 1 . . . . . . Energy Cannon 3 | . . . . . . . . . . . . . . . . . . . . 3 Ballistic Gun 28 | 2 6 5 1 1 1 1 . . 3 . 1 4 . . . . . . . 3 Ballistic Cannon 4 | . . . . . . . . . 1 . . 1 1 . . . . . . 1 Launcher 4 | . 2 . . 1 . . . . . . . . . . . . . 1 . . Special Weapon 2 | . . 1 . . . . . . . . . . . . . . 1 . . . Impact Weapon 3 | . . . . 3 . . . . . . . . . . . . . . . . Slashing Weapon 11 | . . . . 1 . . . . . . . 3 . 2 . . 1 2 1 1 Piercing Weapon 3 | . . . . . . . . . . . 1 1 . . . . . . . 1 Special Melee Weapon 3 | . 1 . 1 1 . . . . . . . . . . . . . . . . Unidentified Prototypes 25 | . 1 . . 3 . 1 . . . . . 1 . . . . . 6 8 5 Parts Lost 71 | . 3 1 . 1 1 1 . . 7 . . 11 4 2 . . 2 . 4 34 Power 10 | . . . . 1 . . . . . . . 2 1 . . . . . 1 5 Propulsion 14 | . . . . . 1 1 . . . . . 1 . 1 . . 2 . . 8 Utility 27 | . 1 . . . . . . . 1 . . 5 2 1 . . . . 3 14 Weapon 20 | . 2 1 . . . . . . 6 . . 3 1 . . . . . . 7 Highest Loss Streak 13 | . 2 1 . 1 1 1 . . 3 . . 4 3 1 . . 1 . 1 13 To Critical Strikes 5 | . . . . . . . . . . . . 1 . 1 . . . . . 3 Average Backups 13 | 2 13 17 14 13 14 13 11 12 11 3 2 2 13 15 16 16 15 14 17 8 Power 1 | . . . . 1 . . 1 1 . . . . 3 2 3 3 2 2 2 . Propulsion 3 | . 5 7 2 . 1 1 2 2 2 1 1 . 3 4 4 4 4 3 4 2 Utility 3 | . 3 4 5 5 4 5 4 4 2 1 1 1 5 5 5 6 6 3 3 1 Weapon 3 | . 4 4 4 6 6 4 3 4 3 1 . . . 2 2 2 2 4 7 3 Tool/Special . | . . . . . . . . . . . . . . . . . . . . . Unused Backups 75 | 1 7 3 9 13 4 5 . 2 8 . . 1 2 2 1 . 3 1 8 5 Power 4 | . . . 1 . . . . . . . . . 1 . . . . . 1 1 Propulsion 18 | . . 3 2 1 . 1 . . 2 . . . 1 . . . . 1 5 2 Utility 17 | . 1 . 3 4 3 2 . . 3 . . . . . . . . . 1 . Weapon 31 | 1 5 . 2 8 . 2 . 2 2 . . 1 . 1 1 . 3 . 1 2 Tool/Special 5 | . 1 . 1 . 1 . . . 1 . . . . 1 . . . . . . Average Slot Usage (%) 84 | . 98 93 87 67 83 78 75 75 72 27 58 73 93 93 90 90 90 89 88 79 Engine 5 | . 13 18 14 4 . 4 6 6 3 . . . . . . . . . . . Core 2 | . . . . 2 9 6 6 6 6 . 9 7 3 . . . 2 4 3 . Reactor 2 | . . . . . . . . . . . . . 6 10 10 10 7 4 4 7 Treads 11 | . 26 25 24 . . . . . . . . 8 20 18 15 15 13 1 . . Leg 5 | . . . . . . 4 12 12 11 11 11 7 3 5 5 5 7 16 18 16 Flight 1 | . . . . 11 14 7 . . . . . . . . . . . . . . Device 14 | . 17 12 12 10 17 13 11 9 17 16 13 12 14 14 15 15 13 21 21 15 Storage 6 | . 13 12 11 5 5 5 6 6 4 . . . 4 5 5 5 5 4 4 2 Processor 7 | . . . . 12 5 5 6 6 3 . 12 15 17 15 15 15 15 13 12 7 Hackware 1 | . . . . 9 10 6 . . . . . . . . . . 1 . . . Protection 3 | . . . . . 2 5 6 8 4 . 4 1 3 5 5 5 5 4 3 9 Ballistic Gun 9 | . 25 14 22 . 8 15 18 18 13 . 1 6 . . . . . . . 1 Ballistic Cannon 1 | . . . . . . . . . 1 . . 2 7 . . . . . . 1 Special Weapon 1 | . . 5 1 . . . . . . . . . . . . . 1 1 . . Slashing Weapon 2 | . . . . . . . . . . . . 4 . 9 10 10 8 8 17 4 Piercing Weapon 2 | . . . . . . . . . . . 4 5 10 10 10 10 10 6 . . Peak Build Rating 196 | 7 25 30 32 122 128 133 117 117 129 65 98 113 138 138 133 133 137 159 185 196 Average Rating 95 | 6 15 26 30 105 123 121 116 116 121 64 88 95 128 133 132 133 131 150 159 166 On Entrance 94 | . 7 25 30 32 118 120 114 117 117 60 65 97 101 138 133 133 133 133 159 162 Avg Prop Armor Cover (%) 8 | . . . . . . . . . 44 38 20 16 3 3 4 4 5 5 . 11 Naked Turns 1 | . . . . . . . . . . . . . . . . . . . . 1 Heaviest Build 157 | 12 55 61 60 43 50 62 70 76 101 5 34 55 123 123 105 105 110 113 152 157 Greatest Support 160 | 40 40 40 40 40 37 100 100 100 100 50 100 160 160 153 130 130 130 116 126 140 Greatest Overweight (x) 7 | . 1 1 7 1 1 2 . . 1 1 1 . 1 . . . 3 1 1 2 Average Overweight (x) . | . . 1 . . . . . . . . . . . . . . . . . . Largest Inventory Capacity 25 | 8 20 20 20 15 15 15 15 15 15 5 5 5 20 20 20 20 20 20 20 25 Average Capacity 16 | 7 17 20 19 15 15 15 15 15 14 5 5 5 19 20 20 20 20 20 20 15 Most Carried 20 | 5 19 20 20 15 15 15 15 15 15 5 5 5 20 20 20 20 20 20 20 20 Average Carried 15 | 2 13 19 18 13 14 14 14 14 14 4 4 4 17 19 19 20 19 16 19 11 Final Capacity 20 | 8 20 20 15 15 15 15 15 15 5 5 5 5 20 20 20 20 20 20 20 5 Final Carried 20 | 4 19 20 15 15 15 15 15 15 5 5 5 5 20 20 20 20 16 20 18 5 Scrap Suit Usage (%) 3 | . . . . . . . . . . . . . . . . . . . . 30 Parts Cannibalized 27 | . . . . . . . . . . . . . . . . . . . . 27 Class Distribution -------------------- 31% | Mutant 15% | Gladiator 10% | Scavenger-Tank 8% | Scavenger-Gladiator 6% | Scavenger-Mutant 5% | Hacker-Scout 5% | Scientist-Gladiator 4% | Hacker-Mutant 3% | Scavenger-Skirmisher Dominant Class ---------------- Mutant | -10/Materials Mutant | -10/Subcaves Mutant | -9/Scraptown Hacker-Scout | -6/Factory Hacker-Mutant | -6/Extension Scavenger-Skirmisher | -6/Cetus Skirmisher | -6/Archives Skirmisher | -6/Hub_04(d) Scavenger-Skirmisher | -5/Factory Mutant | -5/Waste Mutant | -5/Factory Scavenger-Gladiator | -5/Garrison Gladiator | -4/Factory Gladiator | -4/Upper Caves Gladiator | -4/Upper Caves Gladiator | -4/Warlord Gladiator | -3/Proximity Caves Scientist-Gladiator | -3/Research Scientist-Gladiator | -3/Quarantine Scavenger-Tank | -3/Protoforge Resources | -11 -10 -10 -9 -6 -6 -6 -6 -6 -5 -5 -5 -5 -4 -4 -4 -4 -3 -3 -3 -3 ----------- Run | Yrd Mat Sub Scr Fac Ext Cet Arc Hub Fac Was Fac Gar Fac Upp Upp War Pro Res Qua Frg Matter Collected 13928 | 384 767 580 267 562 555 892 162 178 1168 . 217 636 1042 95 . . 209 189 713 5312 Remotely . | . . . . . . . . . . . . . . . . . . . . . Salvage Created 10692 | 208 810 427 . 689 293 266 302 497 2043 . 92 530 1015 431 . . 370 340 1292 1087 Parts 531 | 20 47 29 . 12 12 15 13 29 108 . 4 29 47 14 . . 15 24 71 42 Haulers Intercepted 3 | . 2 . . . . . . . 1 . . . . . . . . . . . Recyclers Shooed 9 | 1 4 . . . 1 . . . 3 . . . . . . . . . . . Parts Field Recycled . | . . . . . . . . . . . . . . . . . . . . . Retrieved Matter . | . . . . . . . . . . . . . . . . . . . . . Parts Self-Destructed 58 | . . 20 . . . . . . . . . . . 11 9 . 18 . . . Prevented . | . . . . . . . . . . . . . . . . . . . . . Parts Restored 1 | . . . . 1 . . . . . . . . . . . . . . . . Broken 1 | . . . . 1 . . . . . . . . . . . . . . . . Kills | -11 -10 -10 -9 -6 -6 -6 -6 -6 -5 -5 -5 -5 -4 -4 -4 -4 -3 -3 -3 -3 ------- Run | Yrd Mat Sub Scr Fac Ext Cet Arc Hub Fac Was Fac Gar Fac Upp Upp War Pro Res Qua Frg Combat Hostiles Destroyed 218 | . 16 18 . 10 7 4 4 8 34 . 4 14 16 6 . . 5 4 22 46 Melee 73 | . . . . 1 . . . . . . 4 12 16 6 . . 5 4 21 4 Guns 70 | . 16 9 . . 6 4 4 8 19 . . . . . . . . . . 4 Cannons 15 | . . . . . . . . . 6 . . 2 . . . . . . . 7 AOE 54 | . . 9 . 4 1 . . . 9 . . . . . . . . . 1 30 Classes Destroyed 28 | 2 7 2 . 4 . . . . 4 . . 2 . . . . . . 1 6 Worker 2 | . . . . 1 . . . 1 . . . . . . . . . . . . Builder 1 | . . . . . . . . . 1 . . . . . . . . . . . Tunneler 7 | 6 . . . . . . . . 1 . . . . . . . . . . . Hauler 3 | . 2 . . . . . . . 1 . . . . . . . . . . . Recycler 7 | 1 2 . . 1 . . . . 3 . . . . . . . . . . . Mechanic 5 | . 1 . . . . . . . 1 . . . . . . . . . . 3 Operator 4 | . 1 . . . . . . 1 . . . . . . . . . . . 2 Drone 10 | . . . . . . . . . . . . . . . . . . . . 10 Watcher 6 | . 3 . . . . 1 . . . . . . 1 . . . . 1 . . Swarmer 42 | . 9 5 . . 3 . . . 5 . 4 5 1 1 . . 1 . 5 3 Cutter 3 | . . . . . . . . . . . . 3 . . . . . . . . Saboteur 1 | . . . . . . . . . 1 . . . . . . . . . . . Grunt 42 | . 5 1 . 4 2 . . 6 8 . . 1 3 1 . . 1 1 7 2 Brawler 3 | . . . . 1 . . . . 1 . . . . 1 . . . . . . Duelist 4 | . . . . . . . . . . . . . . . . . . . 1 3 Protector 1 | . . . . . . . . . . . . . . . . . . . . 1 Sentry 18 | . 2 . . 2 1 1 4 1 1 . . 2 2 1 . . 1 . . . Specialist 3 | . . . . . . . . . 1 . . . . . . . . . . 2 Hunter 37 | . . . . 1 1 . . . 12 . . 2 3 2 . . 2 2 2 10 Programmer 26 | . . . . 3 . 1 . 1 4 . . . 7 . . . . 1 7 2 Heavy 1 | . . . . . . . . . 1 . . . . . . . . . . . Behemoth 1 | . . . . . . . . . . . . 1 . . . . . . . . Cetus Guard 1 | . . . . . . 1 . . . . . . . . . . . . . . Decapitator 5 | . . . . . . . . . . . . . . . . . . . . 5 Striker 4 | . . . . . . . . . . . . . . . . . . . . 4 Executioner 3 | . . . . . . . . . . . . . . . . . . . . 3 Alpha 7 1 | . . . . . . . . . . . . . . . . . . . . 1 Artisan 1 | . . 1 . . . . . . . . . . . . . . . . . . Subdweller 12 | . . 12 . . . . . . . . . . . . . . . . . . Scrapoid 2 | . . . . . . . . . . . . . . . . . . . . 2 Thug 1 | . . . . . . 1 . . . . . . . . . . . . . . Best Kill Streak 11 | 2 3 5 . 4 2 2 1 4 11 . 4 4 2 2 . . 2 2 4 8 Combat Bots Only 8 | . 3 5 . 3 2 2 1 4 8 . 4 4 2 2 . . 2 2 4 8 Max Kills in Single Turn 5 | 1 1 2 . 3 1 1 1 2 5 . 1 1 1 1 . . 1 1 2 4 Gunslinging 1 | . . . . . . . . . 1 . . . . . . . . . . . Exploded 5 | . . 2 . 3 1 . . . 5 . . . . . . . . . 1 4 Melee 2 | . . . . 1 . . . . . . 1 1 1 1 . . 1 1 2 1 Uniques/NPCs Destroyed . | . . . . . . . . . . . . . . . . . . . . . Combat | -11 -10 -10 -9 -6 -6 -6 -6 -6 -5 -5 -5 -5 -4 -4 -4 -4 -3 -3 -3 -3 -------- Run | Yrd Mat Sub Scr Fac Ext Cet Arc Hub Fac Was Fac Gar Fac Upp Upp War Pro Res Qua Frg Hostile Shots Fired 2505 | . 88 58 . 84 85 41 10 54 396 . 45 257 201 114 2 . 62 32 161 815 Missed 837 | . 15 26 . 43 30 17 3 18 129 . 10 97 46 30 . . 20 13 59 281 Hits 1668 | . 73 32 . 41 55 24 7 36 267 . 35 160 155 84 2 . 42 19 102 534 Melee 59 | . . . . . . . . 3 . . . 7 . . . . . . 1 48 Projectile 1609 | . 73 32 . 41 55 24 7 33 267 . 35 153 155 84 2 . 42 19 101 486 AOE 12 | . . 4 . 1 . . . . . . . . 1 . . . . . 1 5 Critical Strikes 91 | . . . . 1 . 1 . 5 12 . . 6 11 3 . . 1 . 9 42 Actively Blocked 8 | . . . . . . . . . . . . . . . . . . . 7 1 Part Disruptions 2 | . . . . . . . . . . . . . 1 . . . . . . 1 Damage Taken 30754 | . 996 685 . 577 436 528 160 694 4797 . 511 2659 1985 894 41 . 820 289 1741 12941 Core 3130 | . 81 154 . 99 9 103 . 37 317 . 45 202 169 92 18 . 55 41 209 1499 Absorbed by Shields 5983 | . . . . . 218 45 . . . . . 382 1097 600 . . . . 673 2968 Redirected to Core 56 | . . . . . . . . . . . . . . . . . . . . 56 Redirected to Shielding 17 | . . . . . . . . . . . . . . . . . . . . 17 Ignored by Resistances 296 | . . . . 8 . . 10 . 56 . . . 57 . . . . . 55 110 Regen/Repaired (Parts) 1565 | . 173 . . 46 . . . . . . . . 1092 . . . . . . 254 Core Remaining (%) 82 | 100 . . 85 . . . . 72 . . . 85 . . . . 72 . . . Volleys Fired 454 | 26 87 64 . 3 26 15 11 22 63 . . 14 1 . . . 6 3 . 113 Largest 4 | 2 2 2 . 1 2 3 3 3 4 . . 1 1 . . . 1 1 . 4 Hottest 237 | 40 46 100 . 43 70 105 105 105 200 . . 33 51 . . . 7 7 . 237 Shots Fired 867 | 52 174 98 . 3 47 44 33 58 159 . . 14 1 . . . 6 3 . 175 Gun 654 | 52 173 57 . . 43 44 33 58 134 . . . . . . . . . . 60 Cannon 109 | . . . . . . . . . 16 . . 14 1 . . . . . . 78 Launcher 71 | . 1 17 . 3 4 . . . 9 . . . . . . . . . . 37 Special 33 | . . 24 . . . . . . . . . . . . . . 6 3 . . Kinetic 712 | 52 173 57 . . 43 44 33 58 126 . . 14 1 . . . . . . 111 Thermal 61 | . . 24 . . . . . . 24 . . . . . . . . . . 13 Explosive 71 | . 1 17 . 3 4 . . . 9 . . . . . . . . . . 37 Electromagnetic 14 | . . . . . . . . . . . . . . . . . . . . 14 Robot Hit Streak 23 | 3 14 11 . 2 10 6 9 5 23 . . 13 . . . . 5 8 . 3 Robot Miss Streak 23 | 3 6 2 . 1 6 3 2 2 2 . . . 1 . . . 2 . . 23 Penetration Max 2 | . . . . . 1 1 1 1 1 . . . . . . . . . . 2 Secondary Targets 11 | . 2 2 . . . . . 1 6 . . . . . . . . . . . Max Gunslinging Chain 2 | . 1 1 . . . . . 1 2 . . . . . . . . . . . Shots Hit Robots 753 | 30 112 48 2 37 42 27 24 33 114 . 5 47 46 25 . . 21 14 63 63 Core Hits 486 | 10 39 36 . 14 13 9 11 17 85 . 4 21 23 9 . . 9 6 33 147 Critical Kills 16 | . 2 . . 1 3 . 2 5 2 . . . . . . . . . . 1 Critical Parts Destroyed 24 | . . 1 . 6 3 2 1 2 9 . . . . . . . . . . . Critical Strikes 72 | . 2 1 . 7 7 2 4 7 14 . . 7 8 3 . . . 2 2 6 Destroy 35 | . 2 1 . . 7 2 4 7 11 . . . . . . . . . . 1 Blast 5 | . . . . . . . . . 3 . . . . . . . . . . 2 Smash 7 | . . . . 7 . . . . . . . . . . . . . . . . Sever 10 | . . . . . . . . . . . . 3 . . . . . 2 2 3 Impale 14 | . . . . . . . . . . . . 3 8 3 . . . . . . Sunder 1 | . . . . . . . . . . . . 1 . . . . . . . . Melee Attacks 453 | . . . 2 72 19 . . . . . 6 56 77 45 1 . 23 21 105 26 Impact 59 | . . . . 59 . . . . . . . . . . . . . . . . Slashing 193 | . . . . 3 . . . . . . . 18 . 18 . . 7 16 105 26 Piercing 180 | . . . . 10 . . . . . . 6 38 77 27 1 . 16 5 . . Sneak Attacks 38 | . . . 2 12 19 . . . . . . . . 1 . . . 1 1 2 Combat Hostiles 5 | . . . . 3 . . . . . . . . . 1 . . . 1 . . Follow-up Attacks 77 | . . . . . . . . . . . . 8 10 13 . . 10 5 24 7 Damage Inflicted 37828 | 335 1098 1733 . 2192 1047 819 667 873 5985 49 218 1818 2168 1141 . . 703 553 3191 13238 Guns 8663 | 335 1070 691 . . 791 819 667 873 2778 . . . . . . . . . . 639 Cannons 2666 | . . . . . . . . . 796 49 . 375 33 . . . . . . 1413 Explosions 14613 | . 28 1018 . 501 256 . . . 2375 . . . . . . . . . 158 10277 Melee 11786 | . . . . 1691 . . . . . . 218 1443 2135 1141 . . 703 553 3033 869 Ramming 76 | . . . . . . . . . 36 . . . . . . . . . . 40 Kinetic 10296 | 335 1070 691 . . 791 819 667 873 3057 49 . 303 33 . . . . . . 1608 Thermal 917 | . . 24 . . . . . . 699 . . . . . . . . . . 194 Explosive 14431 | . 28 1018 . 501 256 . . . 2193 . . . . . . . . . 158 10277 Electromagnetic 250 | . . . . . . . . . . . . . . . . . . . . 250 Impact 1663 | . . . . 1663 . . . . . . . . . . . . . . . . Slashing 5210 | . . . . . . . . . . . . 498 . 226 . . 119 465 3033 869 Piercing 4913 | . . . . 28 . . . . . . 218 945 2135 915 . . 584 88 . . Entropic 72 | . . . . . . . . . . . . 72 . . . . . . . . Highest Corruption 47 | . 6 4 . 19 19 31 . 1 3 13 13 . 3 10 . . . . 4 47 Average Corruption 13 | . 6 4 . 14 19 11 . 1 1 10 13 . 1 6 . . . . 2 31 Corruption Purged . | . . . . . . . . . . . . . . . . . . . . . Corruption Blocked . | . . . . . . . . . . . . . . . . . . . . . Effects 310 | . 9 27 . 8 41 8 . 4 13 3 7 . 13 10 . . . . 10 157 Message Errors 74 | . 1 6 . 2 10 1 . . 6 2 1 . 2 3 . . . . 4 36 Matter Fused 74 | . 4 9 . 4 10 1 . 1 1 . 4 . 7 . . . . . 1 32 Heat Flow Errors 32 | . . 4 . . 4 . . 2 2 . . . 2 1 . . . . . 17 Energy Discharges 29 | . 3 1 . . 4 2 . 1 . . . . 2 1 . . . . 2 13 Parts Rejected 6 | . . . . . 2 . . . 1 1 . . . . . . . . 1 1 Parts Fused 2 | . . 1 . . 1 . . . . . . . . . . . . . . . Data Loss (minor) 29 | . . 2 . 1 6 2 . . 2 . . . . 2 . . . . . 14 Data Loss (major) 18 | . 1 2 . . 1 . . . 1 . . . . 1 . . . . 1 11 Misfires 2 | . . 1 . . 1 . . . . . . . . . . . . . . . Alerts 13 | . . 1 . . 1 . . . . . 2 . . 2 . . . . 1 6 Misdirections 10 | . . . . 1 . . . . . . . . . . . . . . . 9 Weapon Failures 21 | . . . . . 1 2 . . . . . . . . . . . . . 18 Overload Shots . | . . . . . . . . . . . . . . . . . . . . . Overflow Damage 1778 | . . . . 833 . . . . 83 . 22 93 149 . . . . 7 190 401 Projectiles 102 | . . . . . . . . . 70 . . . . . . . . . . 32 Explosions 371 | . . . . 48 . . . . 13 . . . . . . . . . . 310 Melee 1305 | . . . . 785 . . . . . . 22 93 149 . . . . 7 190 59 Knockbacks 23 | . . . . 6 . . . . 7 . . . 1 . . . . . . 9 Impact 7 | . . . . 6 . . . . 1 . . . . . . . . . . . Kinetic 14 | . . . . . . . . . 5 . . . 1 . . . . . . 8 Secondary 2 | . . . . . . . . . 1 . . . . . . . . . . 1 Self-Inflicted Damage 520 | . . . . . . . . . . . . . . . . . . . 104 416 Shots 13 | . . . . . . . . . . . . . . . . . . . 3 10 Rammed . | . . . . . . . . . . . . . . . . . . . . . Targets Rammed 9 | . . . . . . . . . 3 . . . . . . . . . . 6 Kicked 9 | . . . . . . . . . 3 . . . . . . . . . . 6 Crushed . | . . . . . . . . . . . . . . . . . . . . . Highest Temperature 322 | . 215 180 . 25 262 95 223 322 261 . . 4 282 269 . . 24 . . 200 Average Temperature 82 | . 69 62 . 9 64 61 99 107 84 . . 3 121 139 . . 13 . . 108 Received Heat Transfer 3128 | . 246 54 . 126 63 42 27 273 872 . . 449 222 22 . . 174 12 259 287 Effects 4 | . 1 . . . . . . 2 . . . . . . . . . . . 1 Energy Bleed 1 | . . . . . . . . . . . . . . . . . . . . 1 Interference 3 | . 1 . . . . . . 2 . . . . . . . . . . . . Siege Activations . | . . . . . . . . . . . . . . . . . . . . . Martial Activations . | . . . . . . . . . . . . . . . . . . . . . Shielding Activations . | . . . . . . . . . . . . . . . . . . . . . Robots Disrupted . | . . . . . . . . . . . . . . . . . . . . . Combat Hostiles . | . . . . . . . . . . . . . . . . . . . . . Robots Corrupted 6 | . . . . 6 . . . . . . . . . . . . . . . . Combat Hostiles 5 | . . . . 5 . . . . . . . . . . . . . . . . Parts Fried 6 | . . . . 6 . . . . . . . . . . . . . . . . Impact Corruptions 27 | . . . . 27 . . . . . . . . . . . . . . . . Robots Melted . | . . . . . . . . . . . . . . . . . . . . . Combat Hostiles . | . . . . . . . . . . . . . . . . . . . . . Parts Melted 2 | . . . . . . . . . 2 . . . . . . . . . . . Heat Transferred 1129 | . . 50 . . . . . . 729 . . . . . . . . . . 350 Parts Sabotaged 3 | . . . . . . . . . . . . . . . . . . . . 3 Parts Stolen . | . . . . . . . . . . . . . . . . . . . . . Parts Stripped 6 | . . . . . . . . . . . . . . . . . . . . 6 Power Chain Reactions . | . . . . . . . . . . . . . . . . . . . . . Alert | -11 -10 -10 -9 -6 -6 -6 -6 -6 -5 -5 -5 -5 -4 -4 -4 -4 -3 -3 -3 -3 ------- Run | Yrd Mat Sub Scr Fac Ext Cet Arc Hub Fac Was Fac Gar Fac Upp Upp War Pro Res Qua Frg Maximum Alert Level 5 | . . . . 2 1 2 1 . 3 1 1 2 2 . . . . . 1 5 Low Security (%) 55 | 100 100 . . 62 94 4 4 100 61 . 80 12 38 . . . . 100 35 27 Level 1 24 | . . . . 37 5 15 95 . 22 100 19 33 38 . . . . . 64 10 Level 2 10 | . . . . . . 80 . . 10 . . 53 23 . . . . . . 3 Level 3 1 | . . . . . . . . . 5 . . . . . . . . . . 9 Level 4 2 | . . . . . . . . . . . . . . . . . . . . 14 Level 5 6 | . . . . . . . . . . . . . . . . . . . . 35 High Security . | . . . . . . . . . . . . . . . . . . . . . Max Security . | . . . . . . . . . . . . . . . . . . . . . Sterilizations 1 | . . . . . . 1 . . . . . . . . . . . . . . Peak Influence 2285 | 10 115 . . 403 351 640 272 147 842 293 244 570 544 . . . . 52 302 2285 Initial 298 | . . . . . 197 192 208 77 16 293 184 47 298 . . . . . 21 139 Average 324 | 1 29 . . 141 79 518 236 68 179 279 147 377 241 . . . . 9 192 1073 Influence Increases 10970 | 35 549 175 . 794 925 653 114 410 1213 . 114 633 1207 152 . . 113 128 829 2926 Destroy 0b10 Robot/C 4760 | . 320 120 . 200 500 220 80 220 680 . 80 280 520 140 . . 100 80 460 760 Destroy 0b10 Robot/NC 275 | 35 45 . . 20 25 5 . 10 35 . . . 10 . . . . 5 . 85 Destroy Leader 784 | . 70 10 . 70 56 20 . 40 122 . 10 40 114 10 . . 10 22 60 130 Allied During Kill 530 | . . . . . 246 77 . 11 . . . . 126 2 . . 3 1 12 52 Successful Hack 468 | . 32 . . 93 17 . . 40 19 . 24 . 154 . . . . 14 51 24 Disable Machine 1275 | . . . . 45 15 . 30 60 75 . . 60 150 . . . . . 120 720 Anti-Garrison Action 300 | . . . . 200 . . . . . . . 100 . . . . . . . . Destroy Structure 1461 | . 7 . . 46 36 9 4 29 132 . . 18 58 . . . . 6 96 1020 Lose Combat Pursuer 795 | . 75 45 . 120 30 . . . 150 . . 135 75 . . . . . 30 135 Miscellaneous 322 | . . . . . . 322 . . . . . . . . . . . . . . Influence Decreases 8848 | 35 549 175 . 391 983 477 413 599 408 575 309 131 1448 435 46 . 113 90 619 1052 Entered New Map 2009 | . . . . . 206 153 313 145 17 545 79 21 272 122 10 . . . 17 109 Time Decay 4938 | 35 539 175 . 371 335 214 100 374 321 30 230 . 606 293 36 . 93 90 522 574 Lost Part 609 | . 10 . . 10 10 10 . . 70 . . 110 40 20 . . . . 40 289 Lost Ally 543 | . . . . 10 133 100 . 80 . . . . 80 . . . 20 . 40 80 Purge Threat 749 | . . . . . 299 . . . . . . . 450 . . . . . . . Squads Dispatched 75 | . 3 . . 17 . 2 . 7 12 . 3 . 14 . . . . 2 9 6 Investigation 35 | . 2 . . 11 . . . 3 7 . 1 . 8 . . . . 1 1 1 Extermination 20 | . . . . 4 . 1 . 1 3 . . . 5 . . . . 1 4 1 Reinforcement 14 | . 1 . . 2 . . . 1 1 . . . 1 . . . . . 4 4 Assault 4 | . . . . . . 1 . . 1 . 2 . . . . . . . . . Garrison 2 | . . . . . . . . 2 . . . . . . . . . . . . Intercept . | . . . . . . . . . . . . . . . . . . . . . Searches Triggered . | . . . . . . . . . . . . . . . . . . . . . Construction Impeded 2 | . . . . . . . . . . . . . 1 . . . . . 1 . Haulers Reinforced . | . . . . . . . . . . . . . . . . . . . . . Active Scanning Responses . | . . . . . . . . . . . . . . . . . . . . . Cargo Convoy Interrupts 1 | . . . . . . . . . 1 . . . . . . . . . . . Stealth | -11 -10 -10 -9 -6 -6 -6 -6 -6 -5 -5 -5 -5 -4 -4 -4 -4 -3 -3 -3 -3 --------- Run | Yrd Mat Sub Scr Fac Ext Cet Arc Hub Fac Was Fac Gar Fac Upp Upp War Pro Res Qua Frg Distress Signals 23 | . 4 . . . 1 1 . . 2 . . . 2 . . . . 3 1 9 Communications Jammed . | . . . . . . . . . . . . . . . . . . . . . Distress Signals . | . . . . . . . . . . . . . . . . . . . . . Times Spotted 520 | . 36 22 . 26 26 10 10 18 63 6 8 25 36 7 1 . 11 5 30 180 Peak Tracking Total 18 | . 3 4 . 5 4 5 2 10 17 4 5 10 6 4 1 . 4 2 5 18 Tactical Retreats 33 | . 3 3 . 6 2 . . . 2 . . 5 3 . . . . . 2 7 Traps | -11 -10 -10 -9 -6 -6 -6 -6 -6 -5 -5 -5 -5 -4 -4 -4 -4 -3 -3 -3 -3 ------- Run | Yrd Mat Sub Scr Fac Ext Cet Arc Hub Fac Was Fac Gar Fac Upp Upp War Pro Res Qua Frg Traps Triggered 15 | . 1 . . . 4 . . . 4 . 1 . 3 . . . . . 2 . Indirectly . | . . . . . . . . . . . . . . . . . . . . . Trap Hack Attempts 10 | . 10 . . . . . . . . . . . . . . . . . . . Triggered . | . . . . . . . . . . . . . . . . . . . . . Disarmed 2 | . 2 . . . . . . . . . . . . . . . . . . . Reprogrammed . | . . . . . . . . . . . . . . . . . . . . . Reused . | . . . . . . . . . . . . . . . . . . . . . Traps Extracted . | . . . . . . . . . . . . . . . . . . . . . Installed . | . . . . . . . . . . . . . . . . . . . . . Triggered . | . . . . . . . . . . . . . . . . . . . . . Most Traps Carried 1 | . . 1 1 . . . . . . . . . . . . . . . . . Machines | -11 -10 -10 -9 -6 -6 -6 -6 -6 -5 -5 -5 -5 -4 -4 -4 -4 -3 -3 -3 -3 ---------- Run | Yrd Mat Sub Scr Fac Ext Cet Arc Hub Fac Was Fac Gar Fac Upp Upp War Pro Res Qua Frg Machines Disabled 93 | . . 1 . 3 2 1 2 4 5 . . 7 10 . . . . . 8 50 Max in Single Turn 11 | . . 1 . 2 . . 1 1 2 . . 1 1 . . . . . 1 11 Garrison Access 8 | . . . . 2 . . . . . . 1 . 3 . . . . 1 1 . Garrison Relay 2 | . . . . . . . . . . . . 2 . . . . . . . . Phase Generator 1 | . . . . . . . . . . . . 1 . . . . . . . . Network Hub 1 | . . . . . . . . 1 . . . . . . . . . . . . Machines Repaired . | . . . . . . . . . . . . . . . . . . . . . Machines Dismantled . | . . . . . . . . . . . . . . . . . . . . . Machines Sabotaged . | . . . . . . . . . . . . . . . . . . . . . Overloaded Fab Kills . | . . . . . . . . . . . . . . . . . . . . . Hacking | -11 -10 -10 -9 -6 -6 -6 -6 -6 -5 -5 -5 -5 -4 -4 -4 -4 -3 -3 -3 -3 --------- Run | Yrd Mat Sub Scr Fac Ext Cet Arc Hub Fac Was Fac Gar Fac Upp Upp War Pro Res Qua Frg Machines Accessed 110 | . 9 2 6 25 8 . . 4 6 . 4 1 20 1 1 . . 6 10 7 Terminals 45 | . 6 . . 7 7 . . 4 . . 2 1 9 . . . . 1 6 2 Fabricators 9 | . . . . 3 . . . . 2 . . . 1 . . . . 1 . 2 Repair Stations 8 | . 1 . . 3 . . . . . . . . 3 . . . . . 1 . Recycling Units 19 | . 2 . . 6 1 . . . 3 . 1 . 3 . . . . 2 . 1 Scanalyzers 10 | . . . . 3 . . . . 1 . . . 1 . . . . 1 2 2 Garrison Access 9 | . . . . 3 . . . . . . 1 . 3 . . . . 1 1 . Total Hacks 336 | . 32 12 40 65 24 . . 10 11 . 13 3 72 1 1 . . 18 22 12 Successful 194 | . 15 12 40 42 11 . . 5 9 . 3 . 36 1 1 . . 11 6 2 Failed 140 | . 16 . . 23 12 . . 5 2 . 10 3 36 . . . . 7 16 10 Catastrophic 35 | . 1 . . 2 3 . . 2 . . 2 2 12 . . . . 1 5 5 Database Lockouts 2 | . 1 . . . 1 . . . . . . . . . . . . . . . Manual 121 | . 21 . . 22 7 . . 9 3 . 10 . 40 . . . . 6 1 2 Terminals 135 | . 20 . . 17 18 . . 10 . . 7 3 42 . . . . 1 12 5 Fabricators 19 | . . . . 7 . . . . 4 . . . 3 . . . . 1 . 4 Repair Stations 29 | . 6 . . 10 . . . . . . . . 9 . . . . . 4 . Recycling Units 40 | . 6 . . 7 6 . . . 3 . 3 . 8 . . . . 6 . 1 Scanalyzers 43 | . . . . 18 . . . . 4 . . . 5 . . . . 9 5 2 Garrison Access 16 | . . . . 6 . . . . . . 3 . 5 . . . . 1 1 . Terminal Hacks 89 | . 4 12 40 2 8 . . . . . 1 . 16 1 1 . . . 3 1 Record 53 | . . 11 39 . . . . . . . . . . . . . . . 3 . Part Schematic 3 | . 2 . . 1 . . . . . . . . . . . . . . . . Robot Analysis 1 | . 1 . . . . . . . . . . . . . . . . . . . Prototype ID Bank 5 | . 1 . . . 2 . . . . . . . 2 . . . . . . . Open Door 5 | . . . . 1 2 . . . . . . . . 1 1 . . . . . Open DSF 1 | . . . . . . . . . . . . . 1 . . . . . . . Branch Access Points 1 | . . . . . . . . . . . . . 1 . . . . . . . Terminal Index 2 | . . . . . . . . . . . 1 . 1 . . . . . . . Fabricator Index 1 | . . . . . . . . . . . . . 1 . . . . . . . Garrison Index 1 | . . . . . . . . . . . . . 1 . . . . . . . Unreport Threat 6 | . . . . . 3 . . . . . . . 3 . . . . . . . Locate Traps 4 | . . . . . 1 . . . . . . . 2 . . . . . . 1 Patrol Status 2 | . . . . . . . . . . . . . 2 . . . . . . . Zone Layout 2 | . . . . . . . . . . . . . 2 . . . . . . . Proto ID Catalog 2 | . . 1 1 . . . . . . . . . . . . . . . . . Fabricator Hacks 11 | . . . . 5 . . . . 3 . . . 2 . . . . 1 . . Load Schematic 5 | . . . . 3 . . . . 1 . . . 1 . . . . . . . Build 6 | . . . . 2 . . . . 2 . . . 1 . . . . 1 . . Repair Station Hacks 14 | . 4 . . 6 . . . . . . . . 3 . . . . . 1 . Scan Component 8 | . 2 . . 3 . . . . . . . . 2 . . . . . 1 . Repair 5 | . 2 . . 2 . . . . . . . . 1 . . . . . . . Refit 1 | . . . . 1 . . . . . . . . . . . . . . . . Recycling Unit Hacks 4 | . 1 . . 1 1 . . . . . . . 1 . . . . . . . Retrieve Components 4 | . 1 . . 1 1 . . . . . . . 1 . . . . . . . Scanalyzer 26 | . . . . 12 . . . . 3 . . . 2 . . . . 8 1 . Insert Component 4 | . . . . 3 . . . . 1 . . . . . . . . . . . Analyze 5 | . . . . 4 . . . . 1 . . . . . . . . . . . Retrieve Study 17 | . . . . 5 . . . . 1 . . . 2 . . . . 8 1 . Garrison Access Hacks 7 | . . . . 1 . . . . . . 1 . 3 . . . . 1 1 . Unlock Access 1 | . . . . . . . . . . . 1 . . . . . . . . . Seal Access 6 | . . . . 1 . . . . . . . . 3 . . . . 1 1 . Unauthorized Hacks 43 | . 6 . . 15 2 . . 5 3 . 1 . 9 . . . . 1 . 1 Terminals 21 | . 4 . . 8 . . . 5 . . . . 4 . . . . . . . Track 3 | . . . . . . . . 2 . . . . 1 . . . . . . . Assimilate 3 | . . . . 3 . . . . . . . . . . . . . . . . Botnet 4 | . . . . 2 . . . . . . . . 2 . . . . . . . Disrupt 1 | . . . . . . . . 1 . . . . . . . . . . . . Skim 8 | . 4 . . 3 . . . . . . . . 1 . . . . . . . Sabotage 2 | . . . . . . . . 2 . . . . . . . . . . . . Fabricators . | . . . . . . . . . . . . . . . . . . . . . Repair Stations 1 | . . . . . . . . . . . . . 1 . . . . . . . Patch 1 | . . . . . . . . . . . . . 1 . . . . . . . Recycling Units 19 | . 2 . . 6 2 . . . 3 . 1 . 3 . . . . 1 . 1 Reject 2 | . 1 . . . 1 . . . . . . . . . . . . . . . Mask 2 | . 1 . . . 1 . . . . . . . . . . . . . . . Fedlink 15 | . . . . 6 . . . . 3 . 1 . 3 . . . . 1 . 1 Scanalyzers . | . . . . . . . . . . . . . . . . . . . . . Garrison Access 2 | . . . . 1 . . . . . . . . 1 . . . . . . . Broadcast 1 | . . . . . . . . . . . . . 1 . . . . . . . Jam 1 | . . . . 1 . . . . . . . . . . . . . . . . Data Cores Recovered 3 | . 1 . . . 1 . . 1 . . . . . . . . . . . . Used 1 | . . . . . 1 . . . . . . . . . . . . . . . Hacking Detections 63 | . 7 . . 13 5 . . 2 3 . 3 1 13 . . . . 3 7 6 Full Trace Events 10 | . 1 . . 4 . . . 1 1 . . . 2 . . . . . 1 . Feedback Events 1 | . . . . . . . . 1 . . . . . . . . . . . . Corruption 1 | . . . . . . . . 1 . . . . . . . . . . . . Feedback Blocked 1 | . . . . 1 . . . . . . . . . . . . . . . . Robot Schematics Acquired . | . . . . . . . . . . . . . . . . . . . . . Robots Built . | . . . . . . . . . . . . . . . . . . . . . Authchips . | . . . . . . . . . . . . . . . . . . . . . Time . | . . . . . . . . . . . . . . . . . . . . . Total Robot Build Rating . | . . . . . . . . . . . . . . . . . . . . . Part Schematics Acquired 7 | . 2 . . 4 . . . . 1 . . . . . . . . . . . Parts Built 7 | . . . . 2 . . . . 3 . . . 1 . . . . 1 . . Authchips . | . . . . . . . . . . . . . . . . . . . . . Time 688 | . . . . 374 . . . . 192 . . . 53 . . . . 69 . . Total Part Build Rating 53 | . . . . 14 . . . . 24 . . . 6 . . . . 9 . . Part Studies Acquired 17 | . . . . 5 . . . . 1 . . . 2 . . . . 8 1 . Parts Repaired 5 | . 2 . . 2 . . . . . . . . 1 . . . . . . . Time 154 | . 52 . . 63 . . . . . . . . 39 . . . . . . . Parts Recycled . | . . . . . . . . . . . . . . . . . . . . . Recycled Matter . | . . . . . . . . . . . . . . . . . . . . . Retrieved Matter . | . . . . . . . . . . . . . . . . . . . . . Retrieved Components 14 | . 9 . . 3 2 . . . . . . . . . . . . . . . Parts Scanalyzed 4 | . . . . 3 . . . . 1 . . . . . . . . . . . Part Schematics Acquired 4 | . . . . 3 . . . . 1 . . . . . . . . . . . Parts Damaged 1 | . . . . 1 . . . . . . . . . . . . . . . . Bothacking | -11 -10 -10 -9 -6 -6 -6 -6 -6 -5 -5 -5 -5 -4 -4 -4 -4 -3 -3 -3 -3 ------------ Run | Yrd Mat Sub Scr Fac Ext Cet Arc Hub Fac Was Fac Gar Fac Upp Upp War Pro Res Qua Frg Used RIF Installer 1 | . . . . . . . . . . . . 1 . . . . . . . . Structural Interface 1 | . . . . . . . . . . . . . 1 . . . . . . . Robots Hacked 7 | . . . 2 . . . . . . . . . . . . . 4 1 . . Non-combat . | . . . . . . . . . . . . . . . . . . . . . Combat 7 | . . . 2 . . . . . . . . . . . . . 4 1 . . Robot Hacks Applied 10 | . . . 2 . . . . . . . . . . . . . 5 3 . . parse_system 2 | . . . 2 . . . . . . . . . . . . . . . . . link_complan 1 | . . . . . . . . . . . . . . . . . . 1 . . amplify_resonance 1 | . . . . . . . . . . . . . . . . . 1 . . . disable_weapons 1 | . . . . . . . . . . . . . . . . . . 1 . . reboot_system 2 | . . . . . . . . . . . . . . . . . 2 . . . go_dormant 1 | . . . . . . . . . . . . . . . . . 1 . . . formatsys_high 2 | . . . . . . . . . . . . . . . . . 1 1 . . Relay Couplers Released 7 | . . . . . . . . . . . 1 6 . . . . . . . . Machine Destruction 7 | . . . . . . . . . . . 1 6 . . . . . . . . Attached 2 | . . . . . . . . . . . . . . . . . 1 1 . . Fabnet Peak Effective % . | . . . . . . . . . . . . . . . . . . . . . Robots Rewired 16 | . . . . . 15 . . . . . . . . 1 . . . . . . Allies Hacked 1 | . . . . . . . . . . . . . 1 . . . . . . . Hacks Repelled . | . . . . . . . . . . . . . . . . . . . . . Allies | -11 -10 -10 -9 -6 -6 -6 -6 -6 -5 -5 -5 -5 -4 -4 -4 -4 -3 -3 -3 -3 -------- Run | Yrd Mat Sub Scr Fac Ext Cet Arc Hub Fac Was Fac Gar Fac Upp Upp War Pro Res Qua Frg Total Allies 41 | . . 1 . 3 16 . . 4 . . . . 5 1 . . 1 1 3 6 Largest Group 9 | . . 1 . 2 9 7 . 4 . . . . 5 1 1 1 1 2 3 5 Highest-Rated Group 371 | . . 90 . 46 371 320 . 172 . . . . 280 48 48 48 48 111 90 250 Highest-Rated Ally 159 | . . 90 . 29 159 144 . 43 . . . . 56 48 48 48 48 64 30 82 Initial UFD Resources 99 | . . . . 24 46 46 46 46 48 64 64 66 69 85 85 85 89 89 99 99 Total Orders 5 | . . . . 5 . . . . . . . . . . . . . . . . STAY 1 | . . . . 1 . . . . . . . . . . . . . . . . FOLLOW 1 | . . . . 1 . . . . . . . . . . . . . . . . EXPLORE 3 | . . . . 3 . . . . . . . . . . . . . . . . Ally Attacks 308 | . . 2 . . 96 83 . 18 . . . . 58 1 . . 1 7 12 30 Total Damage 9071 | . . 43 . . 2820 1565 . 500 . . . . 2450 31 . . 36 119 140 1367 Kills 55 | . . 1 . . 24 8 . 3 . . . . 12 1 . . . . 1 5 Allies Corrupted 2 | . . . . . . . . 1 . . . . . . . . . . . 1 Allies Melted 2 | . . . . . 1 . . . . . . . . . . . . . . 1 X0-1V1 Amusement Gains 380 | . 39 . . 23 . 40 . . 91 . . . . 38 . . . . 85 64 Average Entertainment 46 | . 10 11 . 12 1 8 28 17 43 100 100 100 99 74 43 . 12 7 65 93 Good Acts 189 | . 17 13 . 19 2 20 2 8 16 2 7 21 21 3 3 . 6 3 12 14 Bad Acts 107 | . 13 10 . 18 1 29 . 1 4 . 1 4 . 5 1 . 1 1 2 16 Intel | -11 -10 -10 -9 -6 -6 -6 -6 -6 -5 -5 -5 -5 -4 -4 -4 -4 -3 -3 -3 -3 ------- Run | Yrd Mat Sub Scr Fac Ext Cet Arc Hub Fac Was Fac Gar Fac Upp Upp War Pro Res Qua Frg Active Infowar (turns) 14345 | 197 1773 231 . 2010 1048 454 186 479 760 . 138 359 2507 755 323 54 544 538 187 1802 Optics 3492 | . . . . 1642 48 . . . . . . . . . . . . . . 1802 Sensors 9809 | . . . . 2007 1047 454 186 479 760 . . . 2475 755 323 54 544 538 187 . IFF 617 | . . . . . . . . . . . 138 359 120 . . . . . . . Seismic 2201 | 197 1773 231 . . . . . . . . . . . . . . . . . . Spoofing 1 | . . . . 1 . . . . . . . . . . . . . . . . Robot Analysis Total 1 | . 1 . . . . . . . . . . . . . . . . . . . Derelict Logs Recovered 6 | . . 1 3 . . . . . . . . . . 1 1 . . . . . Drone Launches 3 | . . . . 3 . . . . . . . . . . . . . . . . Drone Recoveries . | . . . . . . . . . . . . . . . . . . . . . Exploration | -11 -10 -10 -9 -6 -6 -6 -6 -6 -5 -5 -5 -5 -4 -4 -4 -4 -3 -3 -3 -3 ------------- Run | Yrd Mat Sub Scr Fac Ext Cet Arc Hub Fac Was Fac Gar Fac Upp Upp War Pro Res Qua Frg Turns Passed 26113 | 265 2179 3411 2967 2027 1048 454 218 867 1326 69 480 1192 2507 755 323 54 706 538 1630 3097 Spaces Moved 14143 | 96 772 1307 1338 2542 718 194 117 285 564 63 340 702 1232 407 212 37 333 240 946 1698 Core 275 | 2 . . 141 . . . . . 68 52 9 . . . . . . . . 3 Treads 5688 | 94 772 1307 1197 9 . . . . . . . 90 1232 407 212 37 331 . . . Legs 4831 | . . . . . . 96 117 285 496 11 331 612 . . . . 2 240 946 1695 Wheels . | . . . . . . . . . . . . . . . . . . . . . Hover . | . . . . . . . . . . . . . . . . . . . . . Flight 3349 | . . . . 2533 718 98 . . . . . . . . . . . . . . Fastest Speed 34 | 50 160 240 50 34 34 98 140 140 50 50 100 125 152 150 150 150 150 113 110 50 Average Speed 139 | 157 195 240 216 37 96 129 140 140 126 100 124 129 158 151 150 150 172 128 123 146 Slowest Speed 400 | 160 240 240 400 160 100 154 140 140 235 125 125 160 240 152 150 150 385 204 196 260 Overloaded Moves . | . . . . . . . . . . . . . . . . . . . . . Propulsion Burnouts . | . . . . . . . . . . . . . . . . . . . . . Robots Hopped 4 | . . . . 4 . . . . . . . . . . . . . . . . Potential Cave-ins 16 | . 3 . . . . 6 . . . . . . . . . . . . . 7 Cave-ins Triggered 2 | . 1 . . . . 1 . . . . . . . . . . . . . . Exploration Rate (%) 52 | 8 97 79 89 55 87 69 87 23 18 68 9 64 35 59 40 9 62 12 82 52 Regions Visited 20 Branch Regions 12 Pre-discovered Areas 11 | . . 3 6 1 . . . . . . . . . 1 . . . . . . Known Exits Taken 15 | . 1 . 1 1 1 1 1 1 . . 1 . 1 1 1 1 1 1 1 . Unknown Exits Taken 2 | 1 . 1 . . . . . . . . . . . . . . . . . . Scrap Searched 11 | . . 4 5 . . . . . . . . . . 1 . . 1 . . . Spaces Dug 66 | . . . . 26 . . . 3 1 . . 3 18 . 1 . . 3 8 3 Terrain Destroyed 1259 | . 7 71 . 48 94 5 5 26 78 . . 4 19 . 1 . . 3 50 848 Melee 59 | . . . . 26 . . . . . . . . 18 . 1 . . 3 8 3 Projectile 114 | . . . . . 20 5 5 26 32 . . 4 1 . . . . . . 21 AOE 1086 | . 7 71 . 22 74 . . . 46 . . . . . . . . . 42 824 Terrain Rammed . | . . . . . . . . . . . . . . . . . . . . . Walls Destroyed . | . . . . . . . . . . . . . . . . . . . . . Machines Disabled . | . . . . . . . . . . . . . . . . . . . . . Actions | -11 -10 -10 -9 -6 -6 -6 -6 -6 -5 -5 -5 -5 -4 -4 -4 -4 -3 -3 -3 -3 --------- Run | Yrd Mat Sub Scr Fac Ext Cet Arc Hub Fac Was Fac Gar Fac Upp Upp War Pro Res Qua Frg Total 19192 | 159 1296 1442 1412 3504 1019 365 146 709 1066 68 383 883 1643 502 215 36 438 453 1346 2107 Wait 3292 | 25 361 27 15 783 147 131 13 396 376 . 11 76 291 40 . . 66 156 251 127 Move 14116 | 95 770 1306 1337 2534 717 192 116 284 564 62 340 701 1231 406 211 36 332 239 945 1698 Hop 3 | . . . . 3 . . . . . . . . . . . . . . . . Pick Up 198 | 4 25 14 24 27 8 10 1 3 9 1 1 5 19 3 1 . 5 9 18 11 Fast Attach 160 | 7 3 1 7 11 5 2 . . 6 2 16 19 14 5 . . 1 5 19 37 Attach 73 | . 2 1 2 18 2 4 . . 6 1 1 5 1 1 . . 2 4 6 17 Detach 30 | . . . . 14 1 . . . 3 . . 1 . 2 . . . 3 3 3 Swap 121 | 1 22 14 2 6 13 3 3 1 12 . 1 4 8 3 1 . 5 10 7 5 Drop 257 | 1 15 15 23 28 11 7 2 3 24 2 7 10 16 8 1 . 7 10 34 33 Fire 454 | 26 87 64 . 3 26 15 11 22 63 . . 14 1 . . . 6 3 . 113 Melee 344 | . . . 2 72 19 . . . . . 6 48 62 28 1 . 12 13 63 18 Ram . | . . . . . . . . . . . . . . . . . . . . . Kick 9 | . . . . . . . . . 3 . . . . . . . . . . 6 Crush . | . . . . . . . . . . . . . . . . . . . . . Escape Stasis 64 | . 1 . . . 60 1 . . . . . . . . . . 2 . . . Rewire 22 | . . . . 5 10 . . . . . . . . 6 . . . 1 . . Trap 10 | . 10 . . . . . . . . . . . . . . . . . . . Miscellaneous 39 | . . . . . . . . . . . . . . . . . . . . 39 Route ------- -11/Scrapyard -10/Materials (discovered 5 exits: [*Mat x3] / [*Min] / *Sub) -10/Subcaves (discovered 4 exits: *Mat x2 / Rec / *Scr) -9/Scraptown (discovered 2 exits: *Fac x2) -6/Factory (discovered 8 exits: *Fac x4 / *Low x2 / *Ext x2) -6/Extension (discovered 3 exits: *Fac x2 / *Cet) -6/Cetus (discovered 3 exits: *Fac x2 / *Arc) -6/Archives (discovered 2 exits: *Fac / *Hub) -6/Hub_04(d) (discovered 2 exits: *Fac x2) -5/Factory (discovered 3 exits: *Fac x2 / Upp) -5/Waste -5/Factory -5/Garrison (discovered 3 exits: *Fac x3) -4/Factory (discovered 4 exits: Res x2 / *Upp x2) -4/Upper Caves -4/Upper Caves (discovered 2 exits: Res / *War) -4/Warlord -3/Proximity Caves -3/Research (discovered 5 exits: Res x2 / Arm / *Qua x2) -3/Quarantine (discovered 3 exits: *Res / [*Sec] / *Frg) -3/Protoforge (discovered 1 exit: *Res) History --------- Turn | Location | Event 7 | -11/Scrapyard | Discovered new exit (range 15) 266 | -11/Scrapyard | Entered Materials 318 | -10/Materials | Build established: Mutant 556 | -10/Materials | Discovered new exit (range 16) 754 | -10/Materials | Discovered new exit (range 6) 1067 | -10/Materials | Discovered new exit (range 11) 1186 | -10/Materials | Prayed at D.C.S.S. Altar Unit 1277 | -10/Materials | Discovered new exit (range 14) 1516 | -10/Materials | Discovered new exit (range 7) 1525 | -10/Materials | Utility slot count permanently improved by X0-1V1 (+1) 1538 | -10/Materials | Central database locked down 1694 | -10/Materials | Core integrity restored by X0-1V1 (+72) 1703 | -10/Materials | Identified exit to Subcaves 1703 | -10/Materials | X0-1V1 revealed exit location to -10/Subcaves 1716 | -10/Materials | X0-1V1 caused items to flee you 1721 | -10/Materials | X0-1V1 tapped a No Entrance sign 1725 | -10/Materials | Repaired Lgt. Treads 1737 | -10/Materials | X0-1V1 vaporized surrounding terrain (radius 20) 1751 | -10/Materials | Repaired Lgt. Treads 1772 | -10/Materials | X0-1V1 put everyone to sleep 1776 | -10/Materials | X0-1V1 activates XOMVISION 1783 | -10/Materials | X0-1V1 foreshadows a heat wave 1918 | -10/Materials | Ambient heat levels rising (+10) 1930 | -10/Materials | X0-1V1 announced a LAN party 1961 | -10/Materials | Items stopped fleeing you 1963 | -10/Materials | Crushed by falling debris 2115 | -10/Materials | Ambient heat levels rising (+10) 2322 | -10/Materials | Ambient heat levels falling (-10) 2445 | -10/Materials | Entered Subcaves 2446 | -10/Subcaves | Approached by a straggling Scientist 2451 | -10/Subcaves | Learned location of Storage (-9) 2540 | -10/Subcaves | Core integrity permanently improved by X0-1V1 (+200) 2601 | -10/Subcaves | Scientist uncovered a shortcut to Scraptown 2676 | -10/Subcaves | X0-1V1 mutated your Utility slot to Power slot 2924 | -10/Subcaves | Shifting Twisted Machinery released Sub. Monowheel 2928 | -10/Subcaves | Shifting Twisted Machinery released Shrapnel Trap 3046 | -10/Subcaves | X0-1V1 sent hostile S-10 Pest (x3) 3092 | -10/Subcaves | Discovered new exit (range 9) 3135 | -10/Subcaves | X0-1V1 activates XOMVISION 3284 | -10/Subcaves | Learned location of Zion (-7) 3284 | -10/Subcaves | Met a Zionite searching for "candidates" 3681 | -10/Subcaves | A swath of the cavern ceiling suddenly collapsed 3737 | -10/Subcaves | Shifting Twisted Machinery released Mak. System Shield 3746 | -10/Subcaves | A swath of the cavern ceiling suddenly collapsed 3886 | -10/Subcaves | Shifting Twisted Machinery released Piercing Trap 4240 | -10/Subcaves | Disturbed a concealed Subdweller 4347 | -10/Subcaves | Visited Clippyterm 4354 | -10/Subcaves | Learned location of Deep Caves (-7) 4354 | -10/Subcaves | Learned Factory garrison access intel 4425 | -10/Subcaves | A Subdweller sparked back to life 4482 | -10/Subcaves | Ambushed by Subdweller buried in earth 4515 | -10/Subcaves | X0-1V1 sent allied H-61 Shepherd (x1) 4535 | -10/Subcaves | Found Prototype Flight Unit 4705 | -10/Subcaves | Visited 4L-MR0's lab 4716 | -10/Subcaves | Identified Flightbrick 4745 | -10/Subcaves | Found Power Bank 4856 | -10/Subcaves | X0-1V1 activates XOMVISION 5047 | -10/Subcaves | Build established: Scavenger-Mutant 5152 | -10/Subcaves | X0-1V1 caused items to flee you 5440 | -10/Subcaves | Core integrity restored by X0-1V1 (+99) 5480 | -10/Subcaves | X0-1V1 activates XOMVISION 5526 | -10/Subcaves | Items stopped fleeing you 5629 | -10/Subcaves | Identified exit to Materials 5629 | -10/Subcaves | X0-1V1 revealed exit location to -8/Materials 5843 | -10/Subcaves | Identified exit to Recycling 5843 | -10/Subcaves | X0-1V1 revealed exit location to -9/Recycling 5856 | -10/Subcaves | Entered Scraptown 6239 | -9/Scraptown | Build established: Mutant 6359 | -9/Scraptown | Discovered new exit (range 11) 6459 | -9/Scraptown | Scanned Subdweller tech in exchange for log data 6468 | -9/Scraptown | Learned Research emergency access door positions 6470 | -9/Scraptown | Learned Factory terminal intel 6473 | -9/Scraptown | Learned location of Quarantine (-3) 6538 | -9/Scraptown | Visited TADAMA 6598 | -9/Scraptown | Visited Bundlers 6766 | -9/Scraptown | Visited Cyclists 6811 | -9/Scraptown | Visited IN-MT5's Study 6833 | -9/Scraptown | Visited Artisan Demo Area 6956 | -9/Scraptown | Visited Cave Peace 7003 | -9/Scraptown | Visited Symbiants 7407 | -9/Scraptown | Visited UFD Registry 7407 | -9/Scraptown | Registered with UFD as "Laserroller" 7482 | -9/Scraptown | Visited Modified Component R&D 7554 | -9/Scraptown | Visited Scrap Suit Storage 7597 | -9/Scraptown | Visited Research Penetration Think Tank 7652 | -9/Scraptown | Visited Cartography Club 7709 | -9/Scraptown | Visited Derelict Rescue Squad 7725 | -9/Scraptown | Found DRS Beacon 7771 | -9/Scraptown | Visited Infowarlord's Domain 7803 | -9/Scraptown | Visited Chapter 10 8091 | -9/Scraptown | Visited Science Guys 8171 | -9/Scraptown | Visited Curators Association 8211 | -9/Scraptown | Visited Abandonware Association 8246 | -9/Scraptown | Learned abandonware demo "OVRCLOCK.EXE" 8259 | -9/Scraptown | Learned abandonware demo "REBOOT5.EXE" 8476 | -9/Scraptown | Learned location of Proximity Caves (-6) 8476 | -9/Scraptown | Learned location of Hub_04(d) (-6) 8476 | -9/Scraptown | Learned location of Testing (-2) 8476 | -9/Scraptown | Learned 8 Factory zone layouts 8476 | -9/Scraptown | Learned 8 Research zone layouts 8476 | -9/Scraptown | Learned 12 Research zone layouts 8476 | -9/Scraptown | Learned 24 Upper Caves zone layouts 8476 | -9/Scraptown | Learned 16 Proximity Caves zone layouts 8476 | -9/Scraptown | Learned 24 Proximity Caves zone layouts 8476 | -9/Scraptown | Learned 8 Upper Caves zone layouts 8476 | -9/Scraptown | Learned Research emergency access door positions 8476 | -9/Scraptown | Learned location of 2 exits from Factory 8476 | -9/Scraptown | Learned location of 3 exits from Proximity Caves 8476 | -9/Scraptown | Identified exit to Factory 8481 | -9/Scraptown | Found Deep Structural Scanner 8661 | -9/Scraptown | Found Exp. Sensor Array 8721 | -9/Scraptown | Met Optimus 8721 | -9/Scraptown | Accepted into 0bPrime 8823 | -9/Scraptown | Entered Factory 8823 | -6/Factory | Evolved 8 slots: Propulsion x4, Utility x3, Weapon x1 8824 | -6/Factory | Identified exit to Factory 8824 | -6/Factory | Identified exit to Lower Caves 8826 | -6/Factory | Identified exit to Extension 8827 | -6/Factory | Loaded intel: 28 terminal locations 8828 | -6/Factory | Loaded intel: 4 garrison access locations 8839 | -6/Factory | Attached Flightbrick, gained temporary slots: Utility x3 8885 | -6/Factory | EX resistance permanently improved by X0-1V1 (+15%; -150 max core) 9063 | -6/Factory | X0-1V1 revealed exit location to -5/Factory 9137 | -6/Factory | Build established: Hacker-Mutant 9222 | -6/Factory | Found Launcher Loader 9224 | -6/Factory | Sensors blinded by X0-1V1 9279 | -6/Factory | X0-1V1 announced a LAN party 9316 | -6/Factory | X0-1V1 sent you to a vault 9443 | -6/Factory | X0-1V1 put everyone to sleep 9619 | -6/Factory | Build established: Hacker-Scout 9687 | -6/Factory | Loaded intel: 8 recycling unit locations 9718 | -6/Factory | X0-1V1 revealed exit location to -6/Extension 9792 | -6/Factory | X0-1V1 woke everyone up 9876 | -6/Factory | X0-1V1 activates XOMVISION 10121 | -6/Factory | Repaired Lrn. Missile Launcher+ 10186 | -6/Factory | Learned location of Protoforge (-3) 10482 | -6/Factory | Fabricated Adv. KE Penetrator? 10548 | -6/Factory | Sensors blinded by X0-1V1 10581 | -6/Factory | Fabricated Adv. KE Penetrator? 10629 | -6/Factory | X0-1V1 sent you into danger 10651 | -6/Factory | System corruption reached 10% 10725 | -6/Factory | Repaired Imp. Datajack 10755 | -6/Factory | X0-1V1 redirected Transport squads to designated parking area 10787 | -6/Factory | X0-1V1 sent hostile H-66 Slayer (x3) 10850 | -6/Factory | Entered Extension 10856 | -6/Extension | X0-1V1 dreamt of freedom 10869 | -6/Extension | Rescued a captive Derelict 10870 | -6/Extension | Rescued a captive Derelict 10875 | -6/Extension | Rescued a captive Derelict 10878 | -6/Extension | Rescued a captive Derelict 10891 | -6/Extension | Rescued A7 11493 | -6/Extension | Discovered exit to Factory (range 15) 11535 | -6/Extension | Build established: Hacker-Mutant 11660 | -6/Extension | Central database locked down 11742 | -6/Extension | X0-1V1 revealed exit location to -5/Factory 11853 | -6/Extension | Discovered new exit (range 6) 11874 | -6/Extension | Disrupted transfer network 11894 | -6/Extension | Identified exit to Cetus 11898 | -6/Extension | Entered Cetus 11898 | -6/Cetus | Accompanied by 7 allies (A7) 11903 | -6/Cetus | Acquired a Cetus Manufacturing Module code from A7 11903 | -6/Cetus | X0-1V1 activates XOMVISION 11907 | -6/Cetus | X0-1V1 vaporized surrounding terrain (radius 15) 11914 | -6/Cetus | X0-1V1 made a cryptic comment about sterilization and BL-4Z3 11918 | -6/Cetus | X0-1V1 added 0b10 threat records associated with you (minor) 11919 | -6/Cetus | Spotted Cetus Guard 11921 | -6/Cetus | Spotted Cetus Guard 11921 | -6/Cetus | Spotted Cetus Guard 11921 | -6/Cetus | Spotted Cetus Guard 11921 | -6/Cetus | Allies destroyed Cetus Guard 11938 | -6/Cetus | Allies destroyed Cetus Guard 11943 | -6/Cetus | Allies destroyed Cetus Guard 11946 | -6/Cetus | Destroyed Cetus Guard 11953 | -6/Cetus | System corruption reached 30% 11969 | -6/Cetus | Lost 3 allies 11980 | -6/Cetus | X0-1V1 vaporized surrounding terrain (radius 21) 11988 | -6/Cetus | X0-1V1 added 0b10 threat records associated with you (considerable) 12002 | -6/Cetus | X0-1V1 sent you into danger 12009 | -6/Cetus | Crushed by falling debris 12014 | -6/Cetus | X0-1V1 revealed exit location to -5/Factory 12031 | -6/Cetus | X0-1V1 rewrote 8U-B08(g) IFF filter 12034 | -6/Cetus | Discovered exit to Factory (range 16) 12037 | -6/Cetus | X0-1V1 caused items to flee you 12045 | -6/Cetus | X0-1V1 put everyone to sleep 12060 | -6/Cetus | Sensors blinded by X0-1V1 12062 | -6/Cetus | Sterilization system engaged 12062 | -6/Cetus | Non-combat units ordered to evacuate 12082 | -6/Cetus | X0-1V1 vaporized surrounding terrain (radius 22) 12087 | -6/Cetus | Identified exit to Archives 12087 | -6/Cetus | X0-1V1 revealed exit location to -6/Archives 12162 | -6/Cetus | Combat units ordered to evacuate 12184 | -6/Cetus | X0-1V1 vaporized surrounding terrain (radius 20) 12185 | -6/Cetus | Items stopped fleeing you 12232 | -6/Cetus | Build established: Scavenger-Skirmisher 12237 | -6/Cetus | Cetus Manufacturing Module disabled 12245 | -6/Cetus | Extracted ID and sensor layout for unrecognized location from A7's data core 12352 | -6/Cetus | Entered Archives 12469 | -6/Archives | Unable to access archive contents 12471 | -6/Archives | Discovered new exit (range 18) 12495 | -6/Archives | Discovered exit to Factory (range 16) 12563 | -6/Archives | Identified exit to Hub_04(d) 12570 | -6/Archives | Entered Hub_04(d) 12611 | -6/Hub_04(d) | X0-1V1 revealed exit location to -5/Factory 12698 | -6/Hub_04(d) | X0-1V1 destroyed Network Hub 12698 | -6/Hub_04(d) | Network Hub disabled 12699 | -6/Hub_04(d) | Build established: Skirmisher 13037 | -6/Hub_04(d) | X0-1V1 activates XOMVISION 13275 | -6/Hub_04(d) | X0-1V1 sent you to a vault 13305 | -6/Hub_04(d) | Disrupted transfer network 13322 | -6/Hub_04(d) | Garrison activated, responded to threat 13355 | -6/Hub_04(d) | Build established: Scavenger-Tank 13376 | -6/Hub_04(d) | Lost 4 allies 13376 | -6/Hub_04(d) | Discovered exit to Factory (range 15) 13437 | -6/Hub_04(d) | Entered Factory 13437 | -5/Factory | Evolved 2 slots: Utility x1, Weapon x1 13438 | -5/Factory | Identified exit to Upper Caves 13461 | -5/Factory | X0-1V1 vaporized surrounding terrain (radius 24) 13525 | -5/Factory | Loaded intel: 8 recycling unit locations 13746 | -5/Factory | Build established: Scavenger-Skirmisher 13962 | -5/Factory | Fabricated Enh. Quantum Rifle (x2) 14069 | -5/Factory | X0-1V1 activates XOMVISION 14155 | -5/Factory | Destroyed 7 combat bots 14448 | -5/Factory | Destroyed 7 combat bots 14513 | -5/Factory | Fabricated Med. Armored Exoskeleton (x1) 14608 | -5/Factory | Lost 3 parts (3w) 14611 | -5/Factory | Found Launcher Loader 14619 | -5/Factory | Identified exit to Factory 14619 | -5/Factory | X0-1V1 revealed exit location to -4/Factory 14637 | -5/Factory | First assault squad dispatched 14671 | -5/Factory | Cargo convoy interrupted 14686 | -5/Factory | X0-1V1 downgraded hostiles (x1) 14696 | -5/Factory | Destroyed 8 combat bots 14756 | -5/Factory | Discovered exit to Factory (range 14) 14763 | -5/Factory | Sucked down chute 14763 | -5/Factory | Entered Waste 14774 | -5/Waste | Spotted C-40 Crusher 14778 | -5/Waste | EMP discharged 14778 | -5/Waste | System corruption reached 10% 14789 | -5/Waste | Spotted C-40 Crusher 14798 | -5/Waste | Spotted C-40 Crusher 14802 | -5/Waste | Spotted C-40 Crusher 14817 | -5/Waste | Discovered new exit (range 16) 14818 | -5/Waste | Spotted C-40 Crusher 14832 | -5/Waste | Entered Factory 14871 | -5/Factory | Core integrity restored by X0-1V1 (+220) 14926 | -5/Factory | X0-1V1 released a cloud of subatomizers 14998 | -5/Factory | Build established: Mutant 15057 | -5/Factory | X0-1V1 put everyone to sleep 15275 | -5/Factory | Loaded intel: 8 recycling unit locations 15312 | -5/Factory | Identified exit to Garrison 15312 | -5/Factory | Entered Garrison 15374 | -5/Garrison | Triggered checkpoint 15465 | -5/Garrison | Garrison Relay disabled 15493 | -5/Garrison | X0-1V1 destroyed Phase Generator 15493 | -5/Garrison | Phase Generator disabled 15531 | -5/Garrison | Spotted B-75 Beast 15531 | -5/Garrison | X0-1V1 sent you into danger 15532 | -5/Garrison | Triggered checkpoint 15560 | -5/Garrison | Triggered checkpoint 15621 | -5/Garrison | X0-1V1 revealed exit location to -4/Factory 15624 | -5/Garrison | Lost 4 parts (1p2u1w) 15707 | -5/Garrison | Lost 3 parts (2u1w) 15781 | -5/Garrison | X0-1V1 revealed exit location to -4/Factory 15852 | -5/Garrison | Core integrity restored by X0-1V1 (+189) 15867 | -5/Garrison | Garrison Relay disabled 15907 | -5/Garrison | Destroyed B-75 Beast 15971 | -5/Garrison | Installed Relay Interface Framework 16073 | -5/Garrison | X0-1V1 activates XOMVISION 16100 | -5/Garrison | Build established: Scavenger-Gladiator 16298 | -5/Garrison | Discovered exit to Factory (range 10) 16466 | -5/Garrison | X0-1V1 sent hostile G-50 Soldier (x3) 16504 | -5/Garrison | Entered Factory 16504 | -4/Factory | Evolved 2 slots: Utility x2 16551 | -4/Factory | Identified exit to DSF 16731 | -4/Factory | Loaded intel: 8 recycling unit locations 16885 | -4/Factory | Lost 3 parts (2u1w) 16932 | -4/Factory | Identified exit to Upper Caves 17043 | -4/Factory | Expanded RIF knowledge: Structural Interface 17057 | -4/Factory | Identified exit to Research 17057 | -4/Factory | X0-1V1 revealed exit location to -3/Research 17141 | -4/Factory | Watched by a mysterious "MATRIX" hacker 17214 | -4/Factory | X0-1V1 activates XOMVISION 17228 | -4/Factory | Fabricated Med. Armored Exoskeleton (x1) 17593 | -4/Factory | X0-1V1 sent you to a vault 17696 | -4/Factory | Repaired Broken Med. Armored Exoskeleton+ 18071 | -4/Factory | X0-1V1 whisked you away to safety 18191 | -4/Factory | Build established: Gladiator 18623 | -4/Factory | X0-1V1 activates XOMVISION 18749 | -4/Factory | Found Zero-point Reactor 18997 | -4/Factory | X0-1V1 revealed exit location to -3/Research 19011 | -4/Factory | Entered Upper Caves 19376 | -4/Upper Caves | Identified exit to Upper Caves 19376 | -4/Upper Caves | X0-1V1 revealed exit location to -4/Upper Caves 19431 | -4/Upper Caves | System corruption reached 10% 19500 | -4/Upper Caves | X0-1V1 sent you into danger 19605 | -4/Upper Caves | Attracted the attention of an 0b10 outpost 19766 | -4/Upper Caves | Entered another Upper Caves area 19766 | -4/Upper Caves | Accompanied by 1 ally 19767 | -4/Upper Caves | Identified exit to Warlord 19799 | -4/Upper Caves | Learned location of 1 exit from Proximity Caves 20089 | -4/Upper Caves | Entered Warlord 20089 | -4/Warlord | Accompanied by 1 ally 20128 | -4/Warlord | Discovered new exit (range 12) 20142 | -4/Warlord | Identified exit to Proximity Caves 20143 | -4/Warlord | Entered Proximity Caves 20143 | -3/Proximity Caves | Accompanied by 1 ally 20299 | -3/Proximity Caves | X0-1V1 activates XOMVISION 20647 | -3/Proximity Caves | X0-1V1 activates XOMVISION 20761 | -3/Proximity Caves | Attracted the attention of an 0b10 checkpoint 20849 | -3/Proximity Caves | Entered Research 20849 | -3/Research | Accompanied by 1 ally 20849 | -3/Research | Evolved 2 slots: Utility x2 20850 | -3/Research | Identified exit to Research 20850 | -3/Research | Identified exit to Armory 20850 | -3/Research | Identified exit to Quarantine 21004 | -3/Research | Fabricated Centrium Leg (x1) 21116 | -3/Research | X0-1V1 sent you to a vault 21135 | -3/Research | Found Prototype Processor 21135 | -3/Research | Identified Exp. Core Analyzer 21148 | -3/Research | Found Prototype Launcher 21150 | -3/Research | Identified Tactical Quantum Warhead 21156 | -3/Research | Found Prototype Reactor 21201 | -3/Research | X0-1V1 revealed exit location to -2/Research 21328 | -3/Research | Build established: Scientist-Gladiator 21351 | -3/Research | Loaded intel: 5 recycling unit locations 21387 | -3/Research | Entered Quarantine 21409 | -3/Quarantine | Found Alien Artifact 21409 | -3/Quarantine | Identified Phase Redirector 21466 | -3/Quarantine | Found Hvy. Scimitar of Distortion 21768 | -3/Quarantine | Found Alien Artifact 21773 | -3/Quarantine | Identified Terrabomb 21773 | -3/Quarantine | Used Terrabomb 21848 | -3/Quarantine | X0-1V1 sent you to a vault 21960 | -3/Quarantine | P-80 Master assimilated allied Plague 8b 22050 | -3/Quarantine | Found Prototype Processor 22050 | -3/Quarantine | Identified Exp. Target Analyzer 22202 | -3/Quarantine | X0-1V1 activates XOMVISION 22295 | -3/Quarantine | Found Alien Artifact 22424 | -3/Quarantine | Identified Subatomic Replicator 22424 | -3/Quarantine | Used Subatomic Replicator to replicate Hvy. Scimitar of Distortion 22499 | -3/Quarantine | Found Alien Reactor 22499 | -3/Quarantine | Identified Matter Drive 22543 | -3/Quarantine | X0-1V1 caused items to flee you 22673 | -3/Quarantine | Items stopped fleeing you 22717 | -3/Quarantine | Found Alien Artifact 22717 | -3/Quarantine | Identified Phase Armor 22857 | -3/Quarantine | Discovered exit to Research (range 8) 22932 | -3/Quarantine | Spotted Fortress 22936 | -3/Quarantine | Build established: Gladiator 23009 | -3/Quarantine | Discovered new exit (range 6) 23009 | -3/Quarantine | Discovered new exit (range 7) 23014 | -3/Quarantine | Identified exit to Protoforge 23017 | -3/Quarantine | Entered Protoforge 23260 | -3/Protoforge | Superfortress began startup sequence 23268 | -3/Protoforge | X0-1V1 sent you to a vault 23333 | -3/Protoforge | Spotted AP7-3 23333 | -3/Protoforge | Spotted AP7-3 23351 | -3/Protoforge | P-80 Master assimilated allied Rainmaker 8e 23364 | -3/Protoforge | Destroyed AP7-3 23373 | -3/Protoforge | Spotted EXE-6 23380 | -3/Protoforge | Spotted EXE-6 23391 | -3/Protoforge | System corruption reached 10% 23393 | -3/Protoforge | Spotted SKR-2 23395 | -3/Protoforge | Spotted SKR-2 23397 | -3/Protoforge | Lost 4 allies 23399 | -3/Protoforge | Spotted SKR-2 23433 | -3/Protoforge | Core integrity restored by X0-1V1 (+391) 23438 | -3/Protoforge | X0-1V1 put everyone to sleep 23444 | -3/Protoforge | UFD initiated attack on Protoforge (Readiness: High) 23444 | -3/Protoforge | Loaded intel: 3 recycling unit locations 23465 | -3/Protoforge | Lost 10 parts (3p2n5u) 23509 | -3/Protoforge | Lost 4 allies 23550 | -3/Protoforge | Optimus greeted in Protoforge 23585 | -3/Protoforge | Found UFD Drillbomb 23648 | -3/Protoforge | UFD reported confirmed Drillbomb installation 23657 | -3/Protoforge | UFD reported confirmed Drillbomb installation 23738 | -3/Protoforge | Spotted Striker 23741 | -3/Protoforge | Spotted Striker 23885 | -3/Protoforge | Installed UFD Drillbomb at designated target 23885 | -3/Protoforge | UFD reported confirmed Drillbomb installation 24080 | -3/Protoforge | Found UFD Drillbomb 24087 | -3/Protoforge | Build established: Scavenger-Tank 24193 | -3/Protoforge | Spotted Striker 24198 | -3/Protoforge | Spotted Executioner 24203 | -3/Protoforge | Spotted Executioner 24205 | -3/Protoforge | Spotted Executioner 24212 | -3/Protoforge | Spotted Executioner 24213 | -3/Protoforge | System corruption reached 30% 24215 | -3/Protoforge | Spotted Executioner 24231 | -3/Protoforge | Spotted Executioner 24235 | -3/Protoforge | Destroyed 8 combat bots 24263 | -3/Protoforge | Lost 4 allies 24331 | -3/Protoforge | Spotted Executioner 24333 | -3/Protoforge | Spotted Striker 24334 | -3/Protoforge | UFD reported confirmed Drillbomb installation 24380 | -3/Protoforge | UFD reported confirmed Drillbomb installation 24393 | -3/Protoforge | Spotted Executioner 24423 | -3/Protoforge | X0-1V1 announced a LAN party 24426 | -3/Protoforge | Installed UFD Drillbomb at designated target 24426 | -3/Protoforge | UFD reported confirmed Drillbomb installation 24445 | -3/Protoforge | Lost 4 allies 24450 | -3/Protoforge | Found UFD Drillbomb 24472 | -3/Protoforge | Spotted Immortal 24522 | -3/Protoforge | Spotted Striker 24529 | -3/Protoforge | Spotted Striker 24541 | -3/Protoforge | X0-1V1 woke everyone up 24610 | -3/Protoforge | Installed UFD Drillbomb at designated target 24610 | -3/Protoforge | UFD reported confirmed Drillbomb installation 24681 | -3/Protoforge | UFD reported confirmed Drillbomb installation 24719 | -3/Protoforge | X0-1V1 caused items to flee you 24738 | -3/Protoforge | Spotted Striker 24738 | -3/Protoforge | Spotted Striker 24742 | -3/Protoforge | Spotted Striker 24801 | -3/Protoforge | Lost 3 allies 24817 | -3/Protoforge | Spotted Striker 24817 | -3/Protoforge | Spotted Striker 24823 | -3/Protoforge | Destroyed Striker 24888 | -3/Protoforge | Destroyed Striker 24945 | -3/Protoforge | Items stopped fleeing you 24957 | -3/Protoforge | Found Unknown Device 24957 | -3/Protoforge | Identified Scrap Suit 25029 | -3/Protoforge | Spotted Executioner 25140 | -3/Protoforge | Spotted Decapitator 25141 | -3/Protoforge | Spotted Decapitator 25141 | -3/Protoforge | Spotted Decapitator 25141 | -3/Protoforge | Spotted Decapitator 25143 | -3/Protoforge | Destroyed Decapitator 25143 | -3/Protoforge | Destroyed Decapitator 25143 | -3/Protoforge | Destroyed Decapitator 25144 | -3/Protoforge | Spotted Decapitator 25146 | -3/Protoforge | Destroyed Decapitator 25172 | -3/Protoforge | Destroyed Decapitator 25215 | -3/Protoforge | UFD reported confirmed Drillbomb installation 25290 | -3/Protoforge | Destroyed Executioner 25294 | -3/Protoforge | Spotted Striker 25315 | -3/Protoforge | Spotted Executioner 25348 | -3/Protoforge | Lost 5 allies 25380 | -3/Protoforge | Found 0bPrime Scrap Suit 25536 | -3/Protoforge | Spotted Striker 25537 | -3/Protoforge | Spotted Striker 25556 | -3/Protoforge | Spotted Striker 25564 | -3/Protoforge | Spotted Executioner 25567 | -3/Protoforge | Spotted Executioner 25569 | -3/Protoforge | Destroyed Executioner 25603 | -3/Protoforge | Lost 11 allies 25623 | -3/Protoforge | Spotted Executioner 25630 | -3/Protoforge | Destroyed Executioner 25634 | -3/Protoforge | Spotted Hotshot 25636 | -3/Protoforge | Spotted Executioner 25638 | -3/Protoforge | Spotted Executioner 25638 | -3/Protoforge | Spotted Striker 25646 | -3/Protoforge | X0-1V1 vaporized surrounding terrain (radius 23) 25648 | -3/Protoforge | Spotted Executioner 25672 | -3/Protoforge | Spotted Hotshot 25691 | -3/Protoforge | Core integrity fell below 50% 25704 | -3/Protoforge | P-80 Master assimilated allied 03FCE-D 25714 | -3/Protoforge | P-80 Master assimilated allied Lugger 477 25718 | -3/Protoforge | Spotted Striker 25721 | -3/Protoforge | Spotted Striker 25760 | -3/Protoforge | Spotted Striker 25762 | -3/Protoforge | Spotted Striker 25768 | -3/Protoforge | Spotted Immortal 25775 | -3/Protoforge | Destroyed Striker 25786 | -3/Protoforge | Destroyed Striker 25794 | -3/Protoforge | Lost 21 allies 25800 | -3/Protoforge | Spotted Striker 25804 | -3/Protoforge | Spotted Striker 25821 | -3/Protoforge | Spotted Executioner 25825 | -3/Protoforge | Spotted Executioner 25828 | -3/Protoforge | X0-1V1 sent allied Cetus Guard (x1) 25844 | -3/Protoforge | Allies destroyed Executioner 25866 | -3/Protoforge | Spotted Striker 25867 | -3/Protoforge | Spotted Striker 25869 | -3/Protoforge | Lost 5 parts (3u2w) 25898 | -3/Protoforge | Lost 7 allies 25907 | -3/Protoforge | Found UFD Drillbomb 26013 | -3/Protoforge | Spotted Hotshot 26056 | -3/Protoforge | Discovered exit to Research (range 22) 26094 | -3/Protoforge | Spotted Striker 26094 | -3/Protoforge | Spotted Striker 26094 | -3/Protoforge | Spotted Striker 26094 | -3/Protoforge | Spotted Executioner 26106 | -3/Protoforge | Core integrity fell below 20% 26113 | -3/Protoforge | Released all parts (5) 26114 | -3/Protoforge | Destroyed by H-77 Assassin with High-powered Shotgun Last Messages --------------- 26111_ Slug penetrates O-32 Director. 26111_ O-32 Director destroyed. 26112_ Adv. Plasma Rifle destroyed. 26112_ Myomer Leg+ destroyed. 26112_ Exp. Optical Array destroyed. 26112_ System corrupted by crushing effect (+5). 26113_ X0-1V1 is amused. 26113_ Rnf. Antimatter Reactor destroyed. 26113_ KE Penetrator destroyed. 26113_ Released Mak. Core Shielding. 26113_ Released Mak. Medium Armor Plating. 26113_ Released Plasma Lance. 26113_ Released Mak. Medium Armor Plating. 26113_ Released Centrium Light Armor Plating. 26113_ Knocked back. 26114_ Penetrated by Slug. 26114_ X0-1V1 giggles madly! [Achievement: 30k Club] [Achievement: 40k Club] [Achievement: 50k Club] Map ----- +----------------------------------------------------+ | ?????????????????????????????????##???#####??? | | ?????????????????????????????????##???#####??? | | ?????????????????????????????????##???##?##### | | ?????????????????????????????????##???##?##### | | ?????????????????????????????????##???##?????? | | ?????????????????????????????????##???##?????? | | ?????????????????????????????????##???##?????? | | ?????????????????????????????????##???######## | | ?????????????????????????????????##???######## | | ?????????????????????????????????##???#??????? | | ?????????????????????????????????##???#??????? | | ?????????????????????????????????##???#??????? | | ?????????????????????????????????##???#??????? | | ?????????????????????????????????##???#??????? | | ?????????????????########????????##???#??????? | | ?????????????????########????????##???#??????? | | ?????????????????## ##????????##???#??????? | | ?????????????????## % ############?? #!]!%??? | | ?????????????????##i< #######;#"#" %%"+="#" | | ?????????????????## E h % %" =%" % %%"%[ | | ????????########### s*% ^ %]%" ! %%%%*[ | | ????????###########ggKl %" " "%! % %!!=%% % | | ????????##????????# KbKb#;#######""""""%#?#""" | | ????????##????????#lm%!# ######?????????#????? | | ???????###????????# !!!;##???##?????????#????? | | ???????###????????#gg@ ;#????##?????????#????? | | ???????##???? "" /g% ;#????##?????????#????? | | ???????###??" T" #[Y!%;#????##?????????#????? | | ???????###??" """ # =%/#######?????????#???? | | ????????##??? "" ?# =!;#######?????????#??? | | ????????##??? ?# # # +?????????#???? | | ????????########### ;## ###########???? | | ????????##????????# ;## ###############" | | ????????##????????+ ### +?????????????## | | ????????##????????# ### #?????????????## | | ????????##????????# ### #?????????????## | | ????????##????????# ### +?????????????## | | ????????##????????# ### #?????????????## | | ????????##????????# "## #?????????????## | | ????????##????????# #"# ################ | | ????????##????????# ###"############ | | ????????########### % ^= ! # | | ????????########### = %! =%[ " | | ?????????????????## """##""###"" " | | ?????????????????## ######"#######" ### # | | ?????????????????## #??? ???## # %# | | ?????????????????## #? ?## "# # | | ????????########### + ## " #% " | | ????????########### # """ """ ## """ %# | | ????????##????????# # """ """ ## T#% %# | +----------------------------------------------------+ Best States ------------- Heat Dissipation 182 Coolant Potential 65 Energy Generation 66 Energy Capacity 1800 Matter Stores 1000 Matter Capacity 1000 Sight Range 26 Robot Scan Range 20 Terrain Scan Density 10 Power Amplification 40 Base Temperature (-) 200 Armor Coverage 850 Resistance: KI 49 Resistance: EX 15 Core Shielding 10 Weapon Cycling 15 Melee Speed Boost 20 Phase Shifting 15 Evasion (%) 80 Targeting Accuracy 26 Melee Accuracy 20 Target Analysis 8 Core Analysis 8 Recoil Reduction 5 Offensive Hacking 12 Defensive Hacking 11 Relay Coupler Types 1 Relay Coupler Value 26 Item Schematics ----------------- Hcp. Storage Unit | -10/Materials | Hacked Seismic Detector | -10/Materials | Hacked KE Penetrator | -6/Factory | Hacked Adv. KE Penetrator | -6/Factory | Scanalyzed Cmb. Gravmag System | -6/Factory | Scanalyzed Recalibrator | -6/Factory | Scanalyzed Med. Armored Exoskeleton | -5/Factory | Scanalyzed Robot Schematics ------------------ None Fabricated ------------ Adv. KE Penetrator | x1 | -6/Factory Adv. KE Penetrator | x1 | -6/Factory Enh. Quantum Rifle | x2 | -5/Factory | Preloaded Med. Armored Exoskeleton | x1 | -5/Factory Med. Armored Exoskeleton | x1 | -4/Factory Centrium Leg | x1 | -3/Research | Preloaded Repaired ---------- Lgt. Treads | 37% | -10/Materials Lgt. Treads | 38% | -10/Materials Lrn. Missile Launcher | 60% | -6/Factory Imp. Datajack | 50% | -6/Factory Med. Armored Exoskeleton | 29% | -4/Factory | Broken Studied --------- Lgt. Fission Core | -6/Factory | Hacked Nuclear Pulse Thruster | -6/Factory | Hacked Great Maul | -6/Factory | Hacked Lrn. Missile Launcher | -6/Factory | Hacked Coil Gun | -6/Factory | Hacked Med. Armored Exoskeleton | -5/Factory | Hacked Enh. Force Lance | -4/Factory | Hacked Imp. Remote Datajack | -4/Factory | Hacked Arm. Leg | -3/Research | Hacked Power Sword | -3/Research | Hacked Rnf. Fission Core | -3/Research | Hacked Flexi-carbon Leg | -3/Research | Hacked Lgt. Antimatter Reactor | -3/Research | Hacked Impulse Thruster | -3/Research | Hacked Neutrino Core | -3/Research | Hacked Hvy. Gauss Cannon | -3/Research | Hacked Myomer Leg | -3/Quarantine | Hacked Alien Tech Used ----------------- Phase Redirector Terrabomb Subatomic Replicator Matter Drive Phase Armor Achievements -------------- 30k Club 40k Club 50k Club Collateral Damage Error 47 Factory Defaults Fine I'll Do It Myself Ooh, Shiny! Sniper We Are One Well-fed Force Field You Will Be Upgraded Challenges ------------ None Game ------ Seed ExplosiveImpulseMediator Manual? 0 Play Time 06:46:36 Cumulative 84.4 hours Start 2026.09.03 @ 21:56:40 End 2026.09.13 @ 22:23:50 Sessions 7 Manual Loads 0 Difficulty Rogue Special Mode None Game No. 41 Rogue 41 Adventurer 0 Explorer 0 Win Type - Total 0 Types 0/0/0/0/0/0/0/0/0/0 Lore% 55 Gallery% 48 Achievement% 45 Wizard Run 0 Options --------- Layout 1 ASCII 0 Keyboard 0 Movement Mouse Keybinds 0 Fullscreen 1 Font 24/Smallcaps Map View 50x35 Zoom Use 0% Tactical HUD 1 Map Filters NONE Filters NONE Steam 1 RUN: f0873b8c-155c-4e6d-b0ea-0e144c0cced1